bitfinex-derivatives/quotes_BTCF0:USTF0_20210706
["timestamp","ask_amount","ask_price","bid_price","bid_amount"]
[1625573579097,0.24057544,34114.0,34113.0,0.56529544]
[1625573579198,0.24057544,34114.0,34113.0,0.32472]
[1625573579501,0.24057544,34114.0,34095.0,1.1869184]
[1625573579597,0.24057544,34114.0,34090.0,1.18892187]
[1625573580109,0.24057544,34114.0,34088.0,1.35876785]
[1625573580112,0.24057544,34114.0,34088.0,1.18899715]
[1625573580301,0.24057544,34114.0,34086.0,1.35885389]
[1625573580302,0.24057544,34114.0,34093.0,0.24057544]
[1625573580304,0.24057544,34094.0,34093.0,0.24057544]
[1625573580500,0.45639544,34094.0,34093.0,0.24057544]
[1625573580702,0.45639544,34094.0,34090.0,0.24057544]
[1625573582303,0.24057544,34091.0,34090.0,0.24057544]
[1625573583209,0.24057544,34094.0,34090.0,0.24057544]
[1625573583308,0.24057544,34097.0,34090.0,0.56176544]
[1625573584260,0.24057544,34097.0,34096.0,0.24057544]
[1625573586315,0.24057544,34097.0,34096.0,0.46792544]
[1625573587771,0.24057544,34104.0,34096.0,0.47139123]
[1625573587879,2.00693789,34124.0,34096.0,0.47139123]
[1625573587972,0.9876,34124.0,34096.0,0.47139123]
[1625573588168,0.9876,34124.0,34096.0,1.48741219]
[1625573588269,0.24057544,34118.0,34117.0,0.24057544]
[1625573588368,0.24057544,34118.0,34117.0,0.55736544]
[1625573593593,0.24057544,34122.0,34117.0,0.55736544]
[1625573594390,0.24057544,34122.0,34121.0,0.24057544]
[1625573597517,0.24057544,34122.0,34112.0,0.24057544]
[1625573597518,0.50296544,34122.0,34112.0,0.24057544]
[1625573598390,0.24057544,34113.0,34112.0,0.24057544]
[1625573598488,0.58766544,34113.0,34112.0,0.24057544]
[1625573598793,0.58766544,34113.0,34109.0,0.24057544]
[1625573598896,0.58766544,34113.0,34104.0,1.01075532]
[1625573599014,0.58766544,34113.0,34087.0,2.02151064]
[1625573599015,0.58766544,34113.0,33804.0,0.24884304]
[1625573599016,0.58766544,34113.0,34102.0,1.01147664]
[1625573599207,0.58766544,34113.0,34098.0,1.34863552]
[1625573599208,0.58766544,34113.0,34098.0,1.01330104]
[1625573599494,0.58766544,34113.0,34097.0,1.01341961]
[1625573599694,0.58766544,34113.0,34091.0,1.51995156]
[1625573599993,0.58766544,34113.0,34097.0,1.01316142]
[1625573600199,0.58766544,34113.0,34096.0,1.01350304]
[1625573600400,0.58766544,34113.0,34095.0,1.18242021]
[1625573600401,0.24057544,34102.0,34101.0,0.24057544]
[1625573600501,0.49913544,34102.0,34101.0,0.24057544]
[1625573600904,0.49913544,34102.0,34097.0,1.25510122]
[1625573601005,0.49913544,34102.0,34097.0,0.24057544]
[1625573602354,0.24057544,34098.0,34097.0,0.24057544]
[1625573603211,0.24057544,34098.0,34097.0,1.25606172]
[1625573603664,0.24057544,34098.0,34097.0,0.24057544]
[1625573604380,0.24057544,34098.0,34097.0,0.48115088]
[1625573604465,0.24057544,34098.0,34097.0,0.48461676]
[1625573604666,0.24057544,34098.0,34097.0,1.49989997]
[1625573604970,0.24057544,34100.0,34097.0,1.49989997]
[1625573605070,0.24057544,34108.0,34097.0,1.49989997]
[1625573605169,0.24057544,34108.0,34097.0,1.79275997]
[1625573605269,0.24057544,34108.0,34099.0,1.01546885]
[1625573605469,0.24057544,34108.0,34104.0,1.01539965]
[1625573605569,0.24057544,34108.0,34104.0,1.31857965]
[1625573606272,0.24057544,34108.0,34104.0,0.30318]
[1625573606371,0.24057544,34106.0,34104.0,0.30318]
[1625573607073,0.24057544,34106.0,34103.0,0.24057544]
[1625573607374,0.24057544,34106.0,34102.0,1.01594067]
[1625573607574,0.24057544,34106.0,34101.0,1.01832264]
[1625573607827,0.24057544,34106.0,34097.0,1.59833897]
[1625573607829,0.24057544,34106.0,34100.0,1.01870913]
[1625573608125,0.24057544,34106.0,34099.0,1.01886757]
[1625573608427,0.48115088,34100.0,34099.0,1.01886757]
[1625573608529,0.80510088,34100.0,34099.0,1.01886757]
[1625573609077,0.80510088,34100.0,34094.0,0.24057544]
[1625573609078,0.80510088,34100.0,34094.0,1.2609725]
[1625573609179,0.80510088,34100.0,34094.0,1.02039706]
[1625573609396,0.80510088,34100.0,34090.0,2.47]
[1625573609398,0.80510088,34100.0,34090.0,3.49193732]
[1625573609982,0.80510088,34100.0,34090.0,2.47]
[1625573610089,0.80510088,34100.0,34090.0,0.60935992]
[1625573610429,0.72172632,34091.0,34090.0,0.60935992]
[1625573610530,0.94476632,34091.0,34090.0,0.60935992]
[1625573613081,0.94476632,34091.0,34090.0,0.10925992]
[1625573614034,0.94476632,34091.0,34083.0,1.02921451]
[1625573614135,0.94476632,34091.0,34085.0,0.68616175]
[1625573614439,0.48115088,34086.0,34085.0,0.68616175]
[1625573614535,0.48115088,34086.0,34084.0,1.02924263]
[1625573614536,0.48115088,34086.0,34084.0,0.68635029]
[1625573615088,0.48115088,34086.0,34085.0,0.68625684]
[1625573616139,0.48115088,34086.0,34084.0,0.6857952]
[1625573616238,0.79859088,34086.0,34084.0,0.6857952]
[1625573616438,0.24057544,34085.0,34084.0,0.6857952]
[1625573616639,0.24057544,34085.0,34084.0,1.37217495]
[1625573617345,0.24057544,34085.0,34084.0,3.60116004]
[1625573617641,0.24057544,34085.0,34084.0,4.9717434]
[1625573618042,0.24057544,34091.0,34084.0,4.9717434]
[1625573618143,0.24057544,34091.0,34084.0,5.1974834]
[1625573618361,0.24057544,34091.0,34089.0,1.36789403]
[1625573618454,0.24057544,34091.0,34090.0,1.8808543]
[1625573618655,0.24057544,34091.0,34090.0,2.90677482]
[1625573618749,0.24057544,34091.0,34090.0,1.70986754]
[1625573619280,0.24057544,34091.0,34090.0,0.68394702]
[1625573619455,0.24057544,34091.0,34087.0,1.19842315]
[1625573619456,0.24057544,34091.0,34087.0,0.6854424]
[1625573619558,0.45531544,34091.0,34087.0,0.6854424]
[1625573619698,0.45531544,34091.0,34085.0,0.68542462]
[1625573619999,0.45531544,34091.0,34087.0,0.68509638]
[1625573620149,0.45531544,34091.0,34086.0,0.68508105]
[1625573620456,0.45531544,34091.0,34087.0,0.68502381]
[1625573621156,0.45531544,34091.0,34086.0,0.68496502]
[1625573621456,0.45531544,34091.0,34087.0,0.68488748]
[1625573621655,0.45531544,34091.0,34086.0,0.68459957]
[1625573621756,0.24057544,34093.0,34086.0,0.68459957]
[1625573621857,0.68709404,34096.0,34086.0,0.68459957]
[1625573621959,1.20241503,34099.0,34086.0,0.68459957]
[1625573621960,1.20241503,34099.0,34088.0,0.6844969]
[1625573621961,0.68698263,34098.0,34088.0,0.6844969]
[1625573622163,0.68698263,34098.0,34086.0,0.34208]
[1625573622164,0.68692906,34103.0,34093.0,0.68340193]
[1625573622359,0.68692906,34103.0,34093.0,1.00870193]
[1625573622460,0.68692906,34103.0,34102.0,0.48115088]
[1625573622461,0.24057544,34103.0,34102.0,0.48115088]
[1625573622560,0.24057544,34103.0,34102.0,0.80853088]
[1625573622865,0.24057544,34103.0,34102.0,0.32738]
[1625573623062,0.24057544,34103.0,34102.0,0.11388]
[1625573623166,0.24057544,34103.0,34095.0,1.43443321]
[1625573623168,0.57061544,34103.0,34095.0,0.92333834]
[1625573623364,0.68683676,34101.0,34095.0,0.24057544]
[1625573623461,0.68683676,34101.0,34091.0,0.68368125]
[1625573624115,0.68683676,34101.0,34088.0,1.1964422]
[1625573624116,0.68686963,34099.0,34089.0,0.68387196]
[1625573624418,1.03021861,34100.0,34087.0,0.68418182]
[1625573624419,0.6869187,34097.0,34087.0,0.68418182]
[1625573624517,0.48115088,34090.0,34088.0,0.24057544]
[1625573624617,0.74666088,34090.0,34088.0,0.92449269]
[1625573624766,0.74666088,34090.0,34088.0,0.68391725]
[1625573624917,0.74666088,34090.0,34086.0,0.6842702]
[1625573625970,0.74666088,34090.0,34087.0,0.68421753]
[1625573626420,0.74666088,34090.0,34086.0,0.68412954]
[1625573626520,0.24057544,34088.0,34086.0,0.68412954]
[1625573626623,0.24057544,34088.0,34087.0,0.68416905]
[1625573626921,0.24057544,34088.0,34087.0,1.71018472]
[1625573627331,0.24057544,34088.0,34087.0,0.68416905]
[1625573627635,0.24057544,34088.0,34087.0,1.70976439]
[1625573627924,0.24057544,34088.0,34087.0,2.90599422]
[1625573628076,0.24057544,34088.0,34087.0,1.70976439]
[1625573628324,0.24057544,34088.0,34087.0,2.90746749]
[1625573628826,0.24057544,34088.0,34087.0,4.27439833]
[1625573629185,0.24057544,34088.0,34087.0,5.8149523]
[1625573629286,0.68666264,34106.0,34087.0,5.8149523]
[1625573629481,0.68660775,34108.0,34097.0,0.6828294]
[1625573629584,0.68660775,34108.0,34097.0,1.0329694]
[1625573629802,1.20143485,34111.0,34097.0,1.0329694]
[1625573629803,1.20143485,34111.0,34099.0,0.68218943]
[1625573629804,0.68644983,34111.0,34099.0,0.68218943]
[1625573630080,0.68655683,34112.0,34102.0,0.68189054]
[1625573630279,0.68653064,34114.0,34103.0,0.68155843]
[1625573630479,0.92710608,34114.0,34113.0,0.48115088]
[1625573630579,0.92710608,34114.0,34113.0,0.76177088]
[1625573630580,0.24057544,34114.0,34113.0,0.76177088]
[1625573631931,0.24057544,34114.0,34113.0,0.28062]
[1625573632044,0.24057544,34114.0,34108.0,0.67985513]
[1625573632142,0.24057544,34114.0,34107.0,0.67997496]
[1625573632333,0.24057544,34114.0,34106.0,0.24057544]
[1625573632533,0.48115088,34107.0,34106.0,0.24057544]
[1625573632841,0.48115088,34107.0,34103.0,0.92130548]
[1625573633161,0.48115088,34107.0,34103.0,0.24057544]
[1625573633351,0.48115088,34107.0,34099.0,0.92213592]
[1625573633353,0.48115088,34107.0,34099.0,0.24057544]
[1625573634091,1.16776243,34107.0,34099.0,0.24057544]
[1625573634390,0.68661294,34106.0,34099.0,0.24057544]
[1625573634489,0.24057544,34100.0,34099.0,0.24057544]
[1625573634789,0.24057544,34100.0,34099.0,0.92264579]
[1625573635041,0.24057544,34100.0,34099.0,1.94555966]
[1625573635341,0.24057544,34100.0,34099.0,3.13833154]
[1625573636243,0.24057544,34100.0,34099.0,4.49965514]
[1625573637348,0.24057544,34100.0,34099.0,4.50312072]
[1625573637445,0.48115088,34107.0,34099.0,4.50312072]
[1625573637545,0.05803124,47219.0,34099.0,6.24494737]
[1625573637546,0.68634887,34119.0,34099.0,6.24494737]
[1625573637695,1.02943753,34120.0,34099.0,6.24494737]
[1625573637696,0.68637042,34120.0,34109.0,0.6794116]
[1625573638498,0.24057544,34117.0,34116.0,0.24057544]
[1625573640302,0.24057544,34117.0,34113.0,0.24057544]
[1625573640503,0.24057544,34114.0,34113.0,0.24057544]
[1625573644109,0.24057544,34114.0,34113.0,0.74927779]
[1625573644362,0.24057544,34114.0,34113.0,0.24057544]
[1625573644461,0.24057544,34117.0,34113.0,0.24057544]
[1625573644560,0.24057544,34117.0,34115.0,0.24057544]
[1625573646163,0.24057544,34117.0,34113.0,0.18229968]
[1625573646267,0.24057544,34117.0,34112.0,0.50866537]
[1625573646268,0.24057544,34117.0,34112.0,0.33917798]
[1625573646564,0.24057544,34117.0,34106.0,1.35671192]
[1625573646566,0.24057544,34117.0,34102.0,0.34024895]
[1625573646567,2.02524844,34113.0,34102.0,0.34024895]
[1625573646766,0.85798778,34107.0,34097.0,0.85162073]
[1625573647068,0.34331532,34104.0,34096.0,0.34095972]
[1625573647164,0.58866532,34104.0,34096.0,0.34095972]
[1625573647263,0.58866532,34104.0,34094.0,0.85256994]
[1625573647264,0.34331831,34103.0,34094.0,0.85256994]
[1625573647565,0.34333599,34101.0,34093.0,0.34111338]
[1625573648068,0.34331783,34102.0,34094.0,0.34082506]
[1625573648268,0.34331783,34102.0,34093.0,0.85202954]
[1625573648570,0.96230176,34094.0,34092.0,0.34082063]
[1625573648671,1.31194176,34094.0,34092.0,0.34082063]
[1625573648771,1.31194176,34094.0,34091.0,0.34086507]
[1625573649324,1.31194176,34094.0,34087.0,1.19302773]
[1625573649325,1.31194176,34094.0,34088.0,0.34083218]
[1625573649523,1.31194176,34094.0,34087.0,0.34086296]
[1625573650226,1.31194176,34094.0,34086.0,0.85198049]
[1625573650575,0.72172632,34087.0,34086.0,0.34068605]
[1625573650676,0.96752632,34087.0,34086.0,0.34068605]
[1625573650777,0.96752632,34087.0,34084.0,0.34074727]
[1625573651077,0.96752632,34087.0,34082.0,0.8519509]
[1625573651376,0.96752632,34087.0,34082.0,0.34078036]
[1625573652180,0.72172632,34087.0,34082.0,0.34078036]
[1625573652479,0.72172632,34087.0,34084.0,0.34068876]
[1625573652578,0.24057544,34085.0,34084.0,0.64041876]
[1625573652754,0.24057544,34085.0,34084.0,0.29973]
[1625573652979,0.24057544,34085.0,34084.0,0.81037537]
[1625573657393,0.24057544,34085.0,34084.0,2.00281636]
[1625573657605,0.24057544,34085.0,34084.0,3.36502102]
[1625573658543,0.24057544,34085.0,34084.0,4.89694035]
[1625573659045,0.24057544,34085.0,34084.0,3.36502102]
[1625573660001,0.24057544,34085.0,34084.0,2.00281636]
[1625573660798,0.24057544,34085.0,34084.0,3.3664622]
[1625573661297,0.24057544,34085.0,34084.0,4.89976254]
[1625573661656,7.544e-05,34085.0,34084.0,4.89976254]
[1625573662002,0.48115088,34087.0,34084.0,4.89976254]
[1625573662300,0.34396866,34099.0,34084.0,4.89976254]
[1625573662400,0.34395136,34100.0,34086.0,4.59379242]
[1625573662603,0.34395136,34100.0,34091.0,1.3604441]
[1625573662701,0.51584109,34101.0,34097.0,0.64109103]
[1625573662702,0.24057544,34101.0,34097.0,0.64109103]
[1625573663203,0.24057544,34101.0,34098.0,0.33998841]
[1625573663503,0.24057544,34101.0,34098.0,0.84998538]
[1625573663704,0.24057544,34101.0,34098.0,0.33998841]
[1625573663904,0.34397892,34100.0,34096.0,0.24057544]
[1625573664006,0.69229892,34100.0,34096.0,0.24057544]
[1625573664205,1.20819921,34100.0,34096.0,0.24057544]
[1625573664408,0.34399385,34099.0,34096.0,0.24057544]
[1625573664706,0.24057544,34097.0,34096.0,0.24057544]
[1625573664806,0.24057544,34097.0,34093.0,0.34072666]
[1625573664907,0.24057544,34097.0,34092.0,0.75166543]
[1625573664908,0.75658254,34097.0,34092.0,0.24057544]
[1625573665207,0.8601058,34094.0,34092.0,0.24057544]
[1625573665407,0.34408462,34093.0,34092.0,0.24057544]
[1625573665506,0.62846462,34093.0,34092.0,0.24057544]
[1625573666410,1.14450904,34093.0,34092.0,0.24057544]
[1625573666661,1.38508448,34093.0,34092.0,0.24057544]
[1625573667168,0.52495544,34093.0,34092.0,0.24057544]
[1625573667272,0.24057544,34093.0,34092.0,0.24057544]
[1625573667362,0.24057544,34093.0,34092.0,0.75181226]
[1625573667713,0.24057544,34097.0,34092.0,0.75181226]
[1625573667814,0.24057544,34097.0,34092.0,1.06565226]
[1625573667914,0.24057544,34097.0,34096.0,0.8512819]
[1625573668413,0.24057544,34097.0,34096.0,0.51076914]
[1625573668616,0.24057544,34099.0,34096.0,0.51076914]
[1625573668716,1.10069636,34101.0,34098.0,0.48115088]
[1625573668717,0.86012092,34101.0,34098.0,0.48115088]
[1625573668816,1.44444247,34105.0,34098.0,0.48115088]
[1625573668817,0.34406608,34102.0,34098.0,0.48115088]
[1625573669016,0.34406608,34102.0,34099.0,0.34073024]
[1625573669115,0.34406608,34102.0,34099.0,0.56736024]
[1625573669315,0.34406608,34102.0,34099.0,0.22663]
[1625573669414,0.86008934,34102.0,34099.0,0.22663]
[1625573669515,0.34406608,34102.0,34099.0,0.22663]
[1625573670317,0.34406608,34102.0,34098.0,1.33297996]
[1625573670518,0.34406608,34102.0,34098.0,0.8218846]
[1625573670719,0.24057544,34099.0,34098.0,0.48115088]
[1625573671723,0.24057544,34099.0,34098.0,0.82189148]
[1625573672326,0.24057544,34099.0,34098.0,0.48115088]
[1625573672629,0.75667518,34099.0,34098.0,0.48115088]
[1625573673227,0.7726731,34099.0,34098.0,0.48115088]
[1625573673527,0.75667518,34099.0,34098.0,0.48115088]
[1625573673782,0.77267309,34099.0,34098.0,0.48115088]
[1625573673880,0.77267309,34099.0,34098.0,0.24057544]
[1625573674378,0.77267309,34099.0,34093.0,0.34099188]
[1625573674494,0.77267309,34099.0,34092.0,0.58159496]
[1625573674580,0.3442033,34095.0,34092.0,0.24057544]
[1625573674684,0.5994733,34095.0,34092.0,0.24057544]
[1625573674779,0.24057544,34093.0,34092.0,0.24057544]
[1625573675082,0.58481549,34093.0,34092.0,0.24057544]
[1625573675331,0.24057544,34093.0,34092.0,0.24057544]
[1625573677683,0.24057544,34093.0,34092.0,0.75169385]
[1625573677782,0.24057544,34093.0,34092.0,0.75516105]
[1625573677984,0.24057544,34096.0,34092.0,1.77713869]
[1625573678083,0.24057544,34096.0,34092.0,2.00964869]
[1625573678185,0.24057544,34096.0,34095.0,0.51049305]
[1625573678285,0.24057544,34099.0,34095.0,0.51049305]
[1625573678385,0.3441819,34100.0,34095.0,0.51049305]
[1625573678488,0.34417805,34101.0,34097.0,0.85015525]
[1625573678788,0.34417805,34101.0,34100.0,0.48115088]
[1625573678895,0.34417805,34101.0,34100.0,0.79867088]
[1625573679313,0.34417805,34101.0,34100.0,0.31752]
[1625573679399,0.53224234,34101.0,34100.0,0.31752]
[1625573679594,1.56461924,34101.0,34100.0,0.31752]
[1625573680041,1.56461924,34101.0,34096.0,0.58075465]
[1625573680343,0.34423688,34099.0,34096.0,0.24057544]
[1625573680594,0.34424243,34098.0,34096.0,0.24057544]
[1625573680793,0.48115088,34097.0,34096.0,0.24057544]
[1625573681800,0.82543622,34097.0,34096.0,0.24057544]
[1625573682002,0.9975075,34097.0,34096.0,0.24057544]
[1625573682311,2.03008715,34097.0,34096.0,0.24057544]
[1625573682398,2.04609229,34097.0,34096.0,0.24057544]
[1625573682999,3.25088633,34097.0,34096.0,0.24057544]
[1625573683803,3.25088633,34097.0,34092.0,0.24057544]
[1625573684201,0.51638742,34093.0,34092.0,0.24057544]
[1625573684401,0.34430646,34093.0,34092.0,0.24057544]
[1625573684651,0.8606822,34093.0,34092.0,0.24057544]
[1625573684750,1.11726383,34093.0,34092.0,0.24057544]
[1625573685100,0.77295737,34093.0,34092.0,0.24057544]
[1625573685401,0.77295737,34093.0,34089.0,0.34050243]
[1625573685502,1.8056815,34093.0,34087.0,0.34078464]
[1625573685803,0.34435622,34088.0,34086.0,0.24057544]
[1625573685903,0.66350622,34088.0,34086.0,0.24057544]
[1625573686104,0.36039724,34087.0,34086.0,0.24057544]
[1625573686317,0.53249543,34087.0,34086.0,0.24057544]
[1625573686404,0.51645581,34087.0,34086.0,0.24057544]
[1625573686605,0.53249571,34087.0,34086.0,0.24057544]
[1625573686756,0.77307115,34087.0,34086.0,0.24057544]
[1625573686956,0.75703125,34087.0,34086.0,0.24057544]
[1625573687418,0.24057544,34087.0,34086.0,0.24057544]
[1625573687606,0.24057544,34087.0,34086.0,0.58147093]
[1625573688105,0.24057544,34087.0,34086.0,0.75165987]
[1625573688212,0.24057544,34087.0,34086.0,0.75512754]
[1625573688409,0.24057544,34087.0,34086.0,1.77698654]
[1625573688607,0.24057544,34087.0,34086.0,0.75512754]
[1625573688808,0.24057544,34087.0,34086.0,0.75165987]
[1625573689608,0.24057544,34087.0,34086.0,1.09248722]
[1625573689811,0.24057544,34087.0,34086.0,0.75165987]
[1625573690262,0.24057544,34087.0,34086.0,0.58143332]
[1625573691214,0.24057544,34087.0,34086.0,1.09256121]
[1625573691463,0.24057544,34087.0,34086.0,0.75170333]
[1625573692818,0.24057544,34087.0,34086.0,1.77380045]
[1625573694230,0.24057544,34087.0,34086.0,0.75170333]
[1625573694826,0.24057544,34087.0,34086.0,1.77172606]
[1625573694977,0.24057544,34087.0,34086.0,1.77519379]
[1625573695228,0.24057544,34087.0,34086.0,1.77172606]
[1625573695379,0.24057544,34087.0,34086.0,0.75170333]
[1625573695629,0.24057544,34087.0,34086.0,1.77193348]
[1625573696086,0.24057544,34087.0,34086.0,1.77540122]
[1625573696181,0.24057544,34087.0,34086.0,2.11745122]
[1625573696683,0.24057544,34087.0,34086.0,3.30710317]
[1625573697234,1.10146342,34093.0,34086.0,3.30710317]
[1625573697535,0.34442119,34092.0,34090.0,0.33990268]
[1625573697734,0.34442119,34092.0,34090.0,0.84999995]
[1625573698036,0.34442119,34092.0,34091.0,0.34004517]
[1625573698434,0.86107997,34093.0,34091.0,0.34004517]
[1625573698736,0.34458018,34094.0,34092.0,0.85017077]
[1625573698935,0.51678417,34095.0,34093.0,0.99127579]
[1625573698936,0.34461178,34095.0,34093.0,0.99127579]
[1625573699035,0.34461178,34095.0,34093.0,1.31433579]
[1625573699242,0.51683156,34096.0,34094.0,0.84955653]
[1625573699243,0.86143724,34096.0,34094.0,0.84955653]
[1625573699437,0.58517892,34097.0,34095.0,0.50944086]
[1625573699637,0.51722825,34096.0,34095.0,0.50944086]
[1625573700139,0.34486043,34096.0,34095.0,0.50944086]
[1625573701339,0.34485548,34097.0,34095.0,1.52626032]
[1625573701538,0.34485078,34098.0,34096.0,1.52426607]
[1625573701839,0.86203899,34098.0,34097.0,0.50805846]
[1625573702042,0.51718821,34098.0,34097.0,0.50805846]
[1625573702441,0.34487206,34099.0,34097.0,1.52337237]
[1625573702540,0.34487206,34099.0,34097.0,1.52683935]
[1625573702842,0.51731753,34104.0,34098.0,2.53593218]
[1625573702941,0.51731753,34104.0,34103.0,0.72172632]
[1625573703041,0.51731753,34104.0,34103.0,1.02080632]
[1625573703141,1.20644237,34108.0,34103.0,2.20095969]
[1625573703142,0.17259685,34107.0,34103.0,2.20095969]
[1625573703291,0.17259685,34107.0,34103.0,2.20442595]
[1625573703392,1.37956785,34113.0,34103.0,2.20442595]
[1625573703492,0.17259583,34108.0,34106.0,1.17978839]
[1625573703593,0.16939583,34108.0,34106.0,1.17978839]
[1625573703693,0.14049583,34108.0,34106.0,1.17978839]
[1625573703794,1.96498193,34123.0,34106.0,1.34747238]
[1625573703795,1.37946323,34117.0,34106.0,1.34747238]
[1625573703893,1.37946323,34117.0,34107.0,0.00346601]
[1625573704092,0.01603225,34116.0,34107.0,0.00346601]
[1625573704292,0.01603225,34116.0,34108.0,4.5502]
[1625573704647,0.0160326,34117.0,34109.0,0.00346591]
[1625573704894,0.01603254,34118.0,34110.0,1.34642634]
[1625573704995,0.01603254,34118.0,34116.0,0.72172632]
[1625573705195,1.37812622,34120.0,34116.0,0.72172632]
[1625573705448,0.01604411,34117.0,34116.0,0.72172632]
[1625573705546,1.39556523,34117.0,34116.0,0.72172632]
[1625573705749,1.37951837,34118.0,34116.0,0.72172632]
[1625573706048,1.39556823,34117.0,34116.0,0.72172632]
[1625573706551,2.08543428,34117.0,34116.0,0.72172632]
[1625573706750,0.68986605,34117.0,34116.0,0.72172632]
[1625573707050,1.37948134,34118.0,34116.0,1.64377643]
[1625573707397,0.68902705,34119.0,34116.0,1.64377643]
[1625573707498,0.68900845,34120.0,34116.0,1.64377643]
[1625573707702,0.18840845,34120.0,34116.0,1.64377643]
[1625573707850,0.56509577,34124.0,34116.0,1.64377643]
[1625573707971,1.37782169,34126.0,34116.0,1.47223632]
[1625573708166,1.37782169,34126.0,34117.0,0.0034648]
[1625573708260,1.37746674,34135.0,34122.0,1.33653201]
[1625573708358,1.37746674,34135.0,34123.0,0.5]
[1625573708455,1.37731496,34136.0,34123.0,2.15358298]
[1625573708954,1.37731496,34136.0,34135.0,0.72172632]
[1625573709054,0.24057544,34146.0,34135.0,0.72172632]
[1625573709055,1.37418434,34138.0,34135.0,0.95632632]
[1625573709255,1.37415654,34139.0,34135.0,0.95632632]
[1625573709455,1.37411627,34141.0,34135.0,0.95632632]
[1625573709753,1.54585933,34144.0,34135.0,0.95632632]
[1625573709754,1.37412826,34140.0,34135.0,0.95632632]
[1625573709957,1.37407594,34142.0,34135.0,0.95632632]
[1625573710357,1.37407594,34142.0,34135.0,1.45632632]
[1625573710559,1.37398933,34146.0,34135.0,1.45632632]
[1625573710859,0.057,34163.0,34135.0,1.45632632]
[1625573710860,1.37397137,34148.0,34135.0,1.45632632]
[1625573710959,1.37397137,34148.0,34147.0,0.72172632]
[1625573711159,0.24057544,34159.0,34147.0,0.72172632]
[1625573711160,1.6106447,34156.0,34147.0,1.05493632]
[1625573711812,0.24057544,34156.0,34147.0,1.05493632]
[1625573711912,1.37001653,34158.0,34147.0,1.05493632]
[1625573712260,0.24057544,34159.0,34147.0,1.05493632]
[1625573712261,1.54571653,34150.0,34147.0,1.05493632]
[1625573713013,1.42491653,34150.0,34149.0,0.24057544]
[1625573715064,1.42491653,34150.0,34149.0,0.58558544]
[1625573715665,0.24057544,34159.0,34149.0,0.58558544]
[1625573716165,0.24057544,34159.0,34149.0,0.24057544]
[1625573716365,1.3648759,34156.0,34149.0,0.24057544]
[1625573716466,1.5891159,34156.0,34149.0,0.24057544]
[1625573716567,0.22424,34156.0,34149.0,0.24057544]
[1625573717017,0.48115088,34150.0,34149.0,0.24057544]
[1625573717467,0.48115088,34150.0,34144.0,0.24057544]
[1625573719027,0.24057544,34145.0,34144.0,0.24057544]
[1625573720311,0.24057544,34145.0,34141.0,0.24057544]
[1625573720689,0.24057544,34145.0,34132.0,0.24057544]
[1625573721084,0.48115088,34133.0,34132.0,0.24057544]
[1625573721176,0.81249088,34133.0,34132.0,0.24057544]
[1625573722794,0.48115088,34133.0,34132.0,0.24057544]
[1625573723981,0.48115088,34133.0,34126.0,0.24057544]
[1625573725094,0.24057544,34127.0,34126.0,0.24057544]
[1625573725990,0.57191544,34127.0,34126.0,0.24057544]
[1625573728597,0.24057544,34127.0,34126.0,0.24057544]
[1625573728697,0.48115088,34133.0,34126.0,0.24057544]
[1625573728798,0.48115088,34133.0,34126.0,0.57633544]
[1625573729102,0.48115088,34133.0,34132.0,0.24057544]
[1625573732312,0.48115088,34133.0,34127.0,0.24057544]
[1625573732414,0.78059088,34133.0,34120.0,0.24057544]
[1625573732765,0.08529828,34128.0,34120.0,0.24057544]
[1625573732965,0.08532921,34126.0,34120.0,0.24057544]
[1625573733065,0.32376921,34126.0,34120.0,0.24057544]
[1625573733162,0.48115088,34121.0,34120.0,0.24057544]
[1625573733363,0.48115088,34121.0,34114.0,0.24057544]
[1625573734014,0.48115088,34121.0,34111.0,0.24057544]
[1625573734518,0.56648469,34121.0,34111.0,0.24057544]
[1625573735168,0.48115088,34112.0,34111.0,0.24057544]
[1625573739872,0.24057544,34112.0,34111.0,0.24057544]
[1625573739973,0.48115088,34121.0,34111.0,0.24057544]
[1625573740072,0.48115088,34121.0,34111.0,0.48002544]
[1625573741223,0.48115088,34121.0,34120.0,0.24057544]
[1625573743089,0.48115088,34121.0,34111.0,0.24057544]
[1625573743192,0.72801088,34121.0,34111.0,0.24057544]
[1625573743278,0.24057544,34112.0,34111.0,0.24057544]
[1625573745639,0.48263544,34112.0,34111.0,0.24057544]
[1625573746837,0.24057544,34112.0,34111.0,0.24057544]
[1625573754909,0.45750544,34112.0,34111.0,0.24057544]
[1625573756360,0.24057544,34112.0,34111.0,0.24057544]
[1625573758570,0.50383544,34112.0,34111.0,0.24057544]
[1625573758668,0.50383544,34112.0,34107.0,0.24057544]
[1625573758768,0.51987185,34112.0,34107.0,0.24057544]
[1625573758968,0.10195858,34111.0,34107.0,0.24057544]
[1625573759169,0.08592499,34110.0,34107.0,0.24057544]
[1625573759271,0.10198132,34110.0,34107.0,0.24057544]
[1625573759371,0.24057544,34108.0,34107.0,0.24057544]
[1625573759770,0.25663211,34108.0,34107.0,0.24057544]
[1625573760372,0.25663211,34108.0,34098.0,0.24057544]
[1625573760872,0.08593757,34105.0,34098.0,0.24057544]
[1625573760971,0.32458757,34105.0,34098.0,0.24057544]
[1625573761173,0.01605873,34104.0,34098.0,0.24057544]
[1625573761323,0.10199775,34104.0,34098.0,0.24057544]
[1625573761422,0.24057544,34099.0,34098.0,0.24057544]
[1625573761722,0.25663454,34099.0,34098.0,0.24057544]
[1625573762323,0.25663454,34099.0,34095.0,0.24057544]
[1625573762723,0.01606022,34098.0,34095.0,0.24057544]
[1625573762824,0.36094022,34098.0,34095.0,0.24057544]
[1625573763276,0.01606054,34097.0,34095.0,0.24057544]
[1625573763378,0.24057544,34096.0,34095.0,0.24057544]
[1625573763828,0.2566365,34096.0,34095.0,0.24057544]
[1625573764127,0.2566365,34096.0,34092.0,0.24057544]
[1625573764229,0.2566365,34096.0,34088.0,0.24057544]
[1625573764680,0.01606112,34095.0,34089.0,0.00346754]
[1625573765432,0.48115088,34090.0,34088.0,0.24057544]
[1625573765631,0.69426088,34090.0,34088.0,0.24057544]
[1625573768246,0.69426088,34090.0,34082.0,0.24057544]
[1625573769436,0.24057544,34083.0,34082.0,0.24057544]
[1625573771203,0.24057544,34083.0,34082.0,1.85654392]
[1625573771492,0.48115088,34090.0,34082.0,3.22751497]
[1625573771687,0.48115088,34090.0,34088.0,0.08071091]
[1625573771886,0.48115088,34090.0,34089.0,0.08065266]
[1625573772086,0.48115088,34090.0,34089.0,0.34958266]
[1625573772387,0.48115088,34090.0,34089.0,0.26893]
[1625573772637,0.48115088,34090.0,34089.0,0.91406999]
[1625573772837,0.48115088,34090.0,34089.0,1.88252303]
[1625573773488,0.48115088,34090.0,34089.0,2.36367391]
[1625573773690,0.24057544,34093.0,34089.0,2.36367391]
[1625573773840,0.24057544,34093.0,34092.0,0.64644777]
[1625573774139,0.24057544,34093.0,34091.0,0.96967166]
[1625573774140,0.24057544,34093.0,34091.0,0.64732497]
[1625573774338,0.24057544,34093.0,34092.0,0.08097467]
[1625573775140,0.24057544,34093.0,34092.0,0.64824192]
[1625573775646,0.24057544,34093.0,34091.0,0.88912159]
[1625573775942,0.24057544,34093.0,34092.0,0.08109181]
[1625573777041,0.24057544,34093.0,34091.0,0.24057544]